[Event "Titled Tuesday Blitz November 29 Early 2022"]
[White "Sadykov, Ramil"]
[Black "Rian, Kapriaga"]
[WhiteFideId "24113590"]
[BlackFideId "7103263"]
[WhiteElo "2245"]
[BlackElo "2214"]
[Result "1-0"]
[Round "06"]
[TimeControl "180+1"]
[Date "2022.11.30"]
[WhiteClock "0:00:23"]
[BlackClock "0:00:02"]

1. e4 {[%clk 0:02:59]}  c6 {[%clk 0:02:59]} 2. d4 {[%clk 0:02:57]}  d5 {[%clk 0:02:59]} 3. exd5 {[%clk 0:02:55]}  cxd5 {[%clk 0:02:59]} 4. Bd3 {[%clk 0:02:55]}  Nc6 {[%clk 0:02:58]} 5. c3 {[%clk 0:02:55]}  Nf6 {[%clk 0:02:58]} 6. Bf4 {[%clk 0:02:54]}  Bg4 {[%clk 0:02:57]} 7. Qb3 {[%clk 0:02:54]}  Qc8 {[%clk 0:02:57]} 8. Nd2 {[%clk 0:02:54]}  e6 {[%clk 0:02:56]} 9. Ngf3 {[%clk 0:02:53]}  Be7 {[%clk 0:02:56]} 10. O-O {[%clk 0:02:52]}  O-O {[%clk 0:02:56]} 11. Qc2 {[%clk 0:02:45]}  Bh5 {[%clk 0:02:51]} 12. Ne5 {[%clk 0:02:44]}  Bg6 {[%clk 0:02:42]} 13. Nxg6 {[%clk 0:02:41]}  hxg6 {[%clk 0:02:42]} 14. Nf3 {[%clk 0:02:26]}  Nh5 {[%clk 0:02:39]} 15. Be3 {[%clk 0:02:24]}  Bd6 {[%clk 0:02:37]} 16. Qd2 {[%clk 0:02:20]}  Qc7 {[%clk 0:02:35]} 17. g3 {[%clk 0:02:20]}  Rab8 {[%clk 0:02:25]} 18. a4 {[%clk 0:02:19]}  a6 {[%clk 0:02:23]} 19. Qe2 {[%clk 0:02:18]}  Rfe8 {[%clk 0:02:18]} 20. Rad1 {[%clk 0:02:13]}  Qa5 {[%clk 0:02:05]} 21. Nd2 {[%clk 0:01:38]}  Nf6 {[%clk 0:01:54]} 22. f4 {[%clk 0:01:35]}  b5 {[%clk 0:01:49]} 23. axb5 {[%clk 0:01:31]}  axb5 {[%clk 0:01:48]} 24. Ra1 {[%clk 0:01:32]}  Qb6 {[%clk 0:01:48]} 25. b4 {[%clk 0:01:30]}  Rec8 {[%clk 0:01:01]} 26. Nb3 {[%clk 0:01:29]}  Ne4 {[%clk 0:01:00]} 27. Bxe4 {[%clk 0:01:27]}  dxe4 {[%clk 0:01:00]} 28. d5 {[%clk 0:01:27]}  Qc7 {[%clk 0:00:54]} 29. dxc6 {[%clk 0:01:24]}  Qxc6 {[%clk 0:00:54]} 30. Bd4 {[%clk 0:01:20]}  Qd5 {[%clk 0:00:47]} 31. Nc5 {[%clk 0:01:18]}  f5 {[%clk 0:00:31]} 32. Rfd1 {[%clk 0:01:16]}  Bxc5 {[%clk 0:00:25]} 33. Bxc5 {[%clk 0:01:17]}  Qb3 {[%clk 0:00:22]} 34. Qa2 {[%clk 0:00:55]}  Qxc3 {[%clk 0:00:19]} 35. Qxe6+ {[%clk 0:00:55]}  Kh7 {[%clk 0:00:19]} 36. Qe5 {[%clk 0:00:51]}  Qf3 {[%clk 0:00:16]} 37. Rd7 {[%clk 0:00:42]}  Rg8 {[%clk 0:00:13]} 38. Raa7 {[%clk 0:00:24]}  Qe2 {[%clk 0:00:02]} 39. Rxg7+ {[%clk 0:00:23]}  Kh6 {[%clk 0:00:02]} 40. Rh7# {[%clk 0:00:23]} 1-0


[Site "https://www.chess.com"]

[Event "Titled Tuesday Blitz November 29 Early 2022"]
[White "Sarana, Alexey"]
[Black "Timofeev, Artyom"]
[WhiteFideId "24133795"]
[BlackFideId "4140419"]
[WhiteElo "3000"]
[BlackElo "2833"]
[Result "1/2-1/2"]
[Round "06"]
[TimeControl "180+1"]
[Date "2022.11.30"]
[WhiteClock "0:00:04"]
[BlackClock "0:00:04"]

1. c4 {[%clk 0:03:00]}  e6 {[%clk 0:02:57]} 2. Nc3 {[%clk 0:03:00]}  d5 {[%clk 0:02:57]} 3. d4 {[%clk 0:03:00]}  c6 {[%clk 0:02:56]} 4. cxd5 {[%clk 0:02:57]}  exd5 {[%clk 0:02:55]} 5. Bf4 {[%clk 0:02:58]}  Bd6 {[%clk 0:02:53]} 6. Bxd6 {[%clk 0:02:58]}  Qxd6 {[%clk 0:02:53]} 7. e3 {[%clk 0:02:58]}  Ne7 {[%clk 0:02:52]} 8. Bd3 {[%clk 0:02:44]}  Bf5 {[%clk 0:02:51]} 9. Bxf5 {[%clk 0:02:42]}  Nxf5 {[%clk 0:02:51]} 10. Qd3 {[%clk 0:02:43]}  g6 {[%clk 0:02:44]} 11. Nf3 {[%clk 0:02:26]}  Nd7 {[%clk 0:02:42]} 12. h4 {[%clk 0:02:18]}  O-O-O {[%clk 0:02:32]} 13. O-O-O {[%clk 0:02:16]}  Kb8 {[%clk 0:02:31]} 14. Kb1 {[%clk 0:02:16]}  h5 {[%clk 0:02:27]} 15. Rd2 {[%clk 0:02:16]}  Rhe8 {[%clk 0:02:25]} 16. Rc2 {[%clk 0:02:15]}  Qf6 {[%clk 0:02:11]} 17. a3 {[%clk 0:02:00]}  Nd6 {[%clk 0:02:10]} 18. Ng5 {[%clk 0:01:57]}  Nf8 {[%clk 0:02:02]} 19. Rhc1 {[%clk 0:01:55]}  Ne6 {[%clk 0:02:02]} 20. Nxe6 {[%clk 0:01:55]}  Qxe6 {[%clk 0:02:01]} 21. g3 {[%clk 0:01:56]}  Qf5 {[%clk 0:01:59]} 22. Qxf5 {[%clk 0:01:55]}  Nxf5 {[%clk 0:01:59]} 23. Ne2 {[%clk 0:01:56]}  Nd6 {[%clk 0:01:59]} 24. Nf4 {[%clk 0:01:56]}  Ne4 {[%clk 0:01:55]} 25. b3 {[%clk 0:01:56]}  Kc7 {[%clk 0:01:54]} 26. Kb2 {[%clk 0:01:55]}  Kd6 {[%clk 0:01:53]} 27. a4 {[%clk 0:01:55]}  a5 {[%clk 0:01:49]} 28. Nd3 {[%clk 0:01:55]}  Re7 {[%clk 0:01:43]} 29. Rg1 {[%clk 0:01:54]}  Nf6 {[%clk 0:01:41]} 30. Ne5 {[%clk 0:01:53]}  Ng4 {[%clk 0:01:40]} 31. Nd3 {[%clk 0:01:48]}  Nf6 {[%clk 0:01:35]} 32. Rc5 {[%clk 0:01:48]}  Ra8 {[%clk 0:01:33]} 33. Ka3 {[%clk 0:01:48]}  Ne4 {[%clk 0:01:29]} 34. Rc2 {[%clk 0:01:48]}  Nf6 {[%clk 0:01:28]} 35. b4 {[%clk 0:01:35]}  axb4+ {[%clk 0:01:27]} 36. Kxb4 {[%clk 0:01:36]}  Ne4 {[%clk 0:01:16]} 37. Rgc1 {[%clk 0:01:36]}  Ra7 {[%clk 0:01:13]} 38. a5 {[%clk 0:01:34]}  Re8 {[%clk 0:01:12]} 39. Ne5 {[%clk 0:01:31]}  Ke6 {[%clk 0:01:08]} 40. Ra1 {[%clk 0:01:23]}  Rea8 {[%clk 0:01:07]} 41. Ra4 {[%clk 0:01:17]}  Nd6 {[%clk 0:01:06]} 42. Rca2 {[%clk 0:01:12]}  Ra6 {[%clk 0:00:54]} 43. Nd3 {[%clk 0:01:12]}  R6a7 {[%clk 0:00:54]} 44. Rc2 {[%clk 0:01:02]}  Ne4 {[%clk 0:00:51]} 45. Ra3 {[%clk 0:00:50]}  f6 {[%clk 0:00:48]} 46. Rca2 {[%clk 0:00:43]}  g5 {[%clk 0:00:42]} 47. Ra1 {[%clk 0:00:40]}  Kf5 {[%clk 0:00:39]} 48. Rh1 {[%clk 0:00:38]}  Rh8 {[%clk 0:00:33]} 49. hxg5 {[%clk 0:00:33]}  fxg5 {[%clk 0:00:33]} 50. Ne5 {[%clk 0:00:33]}  h4 {[%clk 0:00:29]} 51. gxh4 {[%clk 0:00:30]}  gxh4 {[%clk 0:00:26]} 52. f3 {[%clk 0:00:29]}  Nd6 {[%clk 0:00:25]} 53. Ra2 {[%clk 0:00:28]}  Raa8 {[%clk 0:00:19]} 54. Rah2 {[%clk 0:00:27]}  Ke6 {[%clk 0:00:10]} 55. Rxh4 {[%clk 0:00:27]}  Rxh4 {[%clk 0:00:10]} 56. Rxh4 {[%clk 0:00:28]}  Nf5 {[%clk 0:00:10]} 57. Rh7 {[%clk 0:00:28]}  Nxe3 {[%clk 0:00:08]} 58. Rxb7 {[%clk 0:00:28]}  Nc2+ {[%clk 0:00:08]} 59. Kc3 {[%clk 0:00:28]}  Ne3 {[%clk 0:00:08]} 60. Kd3 {[%clk 0:00:22]}  Nc4 {[%clk 0:00:06]} 61. Nxc4 {[%clk 0:00:06]}  dxc4+ {[%clk 0:00:06]} 62. Kxc4 {[%clk 0:00:07]}  Rxa5 {[%clk 0:00:07]} 63. Rc7 {[%clk 0:00:07]}  Kd6 {[%clk 0:00:07]} 64. Rf7 {[%clk 0:00:07]}  Ra4+ {[%clk 0:00:07]} 65. Kd3 {[%clk 0:00:08]}  Kd5 {[%clk 0:00:06]} 66. Rf5+ {[%clk 0:00:08]}  Ke6 {[%clk 0:00:06]} 67. Rc5 {[%clk 0:00:08]}  Kd6 {[%clk 0:00:07]} 68. Ke4 {[%clk 0:00:09]}  Ra1 {[%clk 0:00:07]} 69. Rc3 {[%clk 0:00:09]}  Re1+ {[%clk 0:00:07]} 70. Re3 {[%clk 0:00:10]}  Rf1 {[%clk 0:00:07]} 71. f4 {[%clk 0:00:04]}  Ke6 {[%clk 0:00:07]} 72. Rc3 {[%clk 0:00:03]}  Re1+ {[%clk 0:00:06]} 73. Kf3 {[%clk 0:00:03]}  Kd5 {[%clk 0:00:06]} 74. Rc5+ {[%clk 0:00:03]}  Kd6 {[%clk 0:00:07]} 75. Re5 {[%clk 0:00:03]}  Rd1 {[%clk 0:00:07]} 76. Ke4 {[%clk 0:00:03]}  Re1+ {[%clk 0:00:07]} 77. Kf5 {[%clk 0:00:04]}  Rd1 {[%clk 0:00:07]} 78. Re8 {[%clk 0:00:03]}  Rxd4 {[%clk 0:00:06]} 79. Kg5 {[%clk 0:00:03]}  Ra4 {[%clk 0:00:04]} 80. f5 {[%clk 0:00:04]}  Ra1 {[%clk 0:00:04]} 81. f6 {[%clk 0:00:04]}  Rg1+ {[%clk 0:00:04]} 82. Kf5 {[%clk 0:00:05]}  Rf1+ {[%clk 0:00:04]} 83. Kg6 {[%clk 0:00:05]}  Rg1+ {[%clk 0:00:05]} 84. Kh7 {[%clk 0:00:06]}  Rh1+ {[%clk 0:00:05]} 85. Kg7 {[%clk 0:00:06]}  Rg1+ {[%clk 0:00:05]} 86. Kf8 {[%clk 0:00:05]}  c5 {[%clk 0:00:05]} 87. f7 {[%clk 0:00:05]}  Rf1 {[%clk 0:00:05]} 88. Kg7 {[%clk 0:00:05]}  c4 {[%clk 0:00:04]} 89. f8=Q+ {[%clk 0:00:02]}  Rxf8 {[%clk 0:00:04]} 90. Rxf8 {[%clk 0:00:03]}  Ke5 {[%clk 0:00:03]} 91. Re8+ {[%clk 0:00:01]}  Kd4 {[%clk 0:00:03]} 92. Rd8+ {[%clk 0:00:01]}  Ke3 {[%clk 0:00:03]} 93. Re8+ {[%clk 0:00:02]}  Kd2 {[%clk 0:00:03]} 94. Kf6 {[%clk 0:00:03]}  c3 {[%clk 0:00:04]} 95. Rd8+ {[%clk 0:00:03]}  Ke3 {[%clk 0:00:04]} 96. Rc8 {[%clk 0:00:02]}  Kd2 {[%clk 0:00:03]} 97. Ke5 {[%clk 0:00:02]}  c2 {[%clk 0:00:03]} 98. Kd4 {[%clk 0:00:03]}  c1=Q {[%clk 0:00:03]} 99. Rxc1 {[%clk 0:00:04]}  Kxc1 {[%clk 0:00:04]} 1/2-1/2


[Site "https://www.chess.com"]

[Event "Titled Tuesday Blitz November 29 Early 2022"]
[White "Sargissyan, Sargis"]
[Black "Gheorghiu, Calin"]
[WhiteFideId "13303210"]
[BlackFideId "1200305"]
[WhiteElo "2109"]
[BlackElo "2225"]
[Result "0-1"]
[Round "06"]
[TimeControl "180+1"]
[Date "2022.11.30"]
[WhiteClock "0:00:01"]
[BlackClock "0:00:38"]

1. e4 {[%clk 0:03:00]}  g6 {[%clk 0:02:58]} 2. d4 {[%clk 0:03:00]}  Bg7 {[%clk 0:02:58]} 3. Nc3 {[%clk 0:03:01]}  a6 {[%clk 0:02:58]} 4. f4 {[%clk 0:03:01]}  d6 {[%clk 0:02:57]} 5. Nf3 {[%clk 0:03:02]}  b5 {[%clk 0:02:56]} 6. Bd3 {[%clk 0:03:03]}  Bb7 {[%clk 0:02:48]} 7. e5 {[%clk 0:03:01]}  Nh6 {[%clk 0:02:49]} 8. e6 {[%clk 0:02:38]}  fxe6 {[%clk 0:02:39]} 9. Qe2 {[%clk 0:02:15]}  Bxf3 {[%clk 0:02:31]} 10. Qxf3 {[%clk 0:02:11]}  c6 {[%clk 0:02:32]} 11. Qh3 {[%clk 0:02:00]}  Nf5 {[%clk 0:02:28]} 12. Ne2 {[%clk 0:02:01]}  c5 {[%clk 0:02:25]} 13. dxc5 {[%clk 0:02:00]}  dxc5 {[%clk 0:02:19]} 14. Be4 {[%clk 0:01:37]}  Ra7 {[%clk 0:02:17]} 15. c3 {[%clk 0:01:38]}  O-O {[%clk 0:02:08]} 16. O-O {[%clk 0:01:32]}  Rd7 {[%clk 0:02:07]} 17. g4 {[%clk 0:01:19]}  Nd6 {[%clk 0:02:06]} 18. Bc2 {[%clk 0:01:18]}  Nc4 {[%clk 0:02:02]} 19. Ng3 {[%clk 0:01:12]}  Nd2 {[%clk 0:01:59]} 20. Bxd2 {[%clk 0:01:11]}  Rxd2 {[%clk 0:01:59]} 21. Rad1 {[%clk 0:01:12]}  b4 {[%clk 0:01:37]} 22. Ne4 {[%clk 0:01:11]}  Rxd1 {[%clk 0:01:28]} 23. Rxd1 {[%clk 0:01:10]}  Qb6 {[%clk 0:01:27]} 24. Ng5 {[%clk 0:01:09]}  c4+ {[%clk 0:01:26]} 25. Kh1 {[%clk 0:01:06]}  h6 {[%clk 0:01:24]} 26. Bxg6 {[%clk 0:00:57]}  bxc3 {[%clk 0:01:17]} 27. bxc3 {[%clk 0:00:56]}  Nd7 {[%clk 0:01:10]} 28. Rxd7 {[%clk 0:00:28]}  Qc6+ {[%clk 0:01:09]} 29. Ne4 {[%clk 0:00:16]}  Qxd7 {[%clk 0:01:07]} 30. g5 {[%clk 0:00:14]}  Qd1+ {[%clk 0:01:02]} 31. Kg2 {[%clk 0:00:14]}  Qe2+ {[%clk 0:00:57]} 32. Nf2 {[%clk 0:00:12]}  Rxf4 {[%clk 0:00:57]} 33. Qg3 {[%clk 0:00:07]}  hxg5 {[%clk 0:00:57]} 34. Bb1 {[%clk 0:00:02]}  Qe5 {[%clk 0:00:40]} 35. h4 {[%clk 0:00:01]}  gxh4 {[%clk 0:00:38]} 0-1


[Site "https://www.chess.com"]

[Event "Titled Tuesday Blitz November 29 Early 2022"]
[White "Schut, Han"]
[Black "Osinovsky, Stepan"]
[WhiteFideId "1005561"]
[BlackFideId "4157354"]
[WhiteElo "2024"]
[BlackElo "2222"]
[Result "1-0"]
[Round "06"]
[TimeControl "180+1"]
[Date "2022.11.30"]
[WhiteClock "0:00:32"]
[BlackClock "0:00:07"]

1. e4 {[%clk 0:02:55]}  e5 {[%clk 0:02:59]} 2. Nf3 {[%clk 0:02:55]}  Nc6 {[%clk 0:02:59]} 3. Bc4 {[%clk 0:02:56]}  Nf6 {[%clk 0:02:59]} 4. d4 {[%clk 0:02:55]}  exd4 {[%clk 0:02:59]} 5. e5 {[%clk 0:02:56]}  d5 {[%clk 0:02:59]} 6. Bb5 {[%clk 0:02:57]}  Ne4 {[%clk 0:02:59]} 7. Nxd4 {[%clk 0:02:57]}  Bd7 {[%clk 0:02:58]} 8. Bxc6 {[%clk 0:02:57]}  bxc6 {[%clk 0:02:59]} 9. O-O {[%clk 0:02:57]}  Bc5 {[%clk 0:02:58]} 10. f3 {[%clk 0:02:58]}  Ng5 {[%clk 0:02:58]} 11. Be3 {[%clk 0:02:58]}  O-O {[%clk 0:02:57]} 12. f4 {[%clk 0:02:59]}  Ne4 {[%clk 0:02:57]} 13. Nd2 {[%clk 0:02:59]}  Nxd2 {[%clk 0:02:58]} 14. Qxd2 {[%clk 0:03:00]}  Bb6 {[%clk 0:02:59]} 15. Nb3 {[%clk 0:02:58]}  f6 {[%clk 0:02:59]} 16. Qc3 {[%clk 0:02:52]}  fxe5 {[%clk 0:02:55]} 17. fxe5 {[%clk 0:02:53]}  Qe7 {[%clk 0:02:49]} 18. Bc5 {[%clk 0:02:50]}  Bxc5+ {[%clk 0:02:47]} 19. Nxc5 {[%clk 0:02:50]}  Bf5 {[%clk 0:02:40]} 20. Rae1 {[%clk 0:02:38]}  h6 {[%clk 0:02:38]} 21. Re2 {[%clk 0:02:29]}  Rae8 {[%clk 0:02:34]} 22. Qd4 {[%clk 0:02:16]}  Bg6 {[%clk 0:02:22]} 23. Rxf8+ {[%clk 0:02:11]}  Rxf8 {[%clk 0:02:21]} 24. c3 {[%clk 0:01:58]}  Qg5 {[%clk 0:02:16]} 25. Qe3 {[%clk 0:01:52]}  Qf5 {[%clk 0:01:52]} 26. h3 {[%clk 0:01:45]}  Qb1+ {[%clk 0:01:23]} 27. Kh2 {[%clk 0:01:45]}  Rf1 {[%clk 0:01:23]} 28. e6 {[%clk 0:01:34]}  Rh1+ {[%clk 0:00:58]} 29. Kg3 {[%clk 0:01:34]}  Kh7 {[%clk 0:00:57]} 30. e7 {[%clk 0:01:27]}  Qf5 {[%clk 0:00:53]} 31. Qf3 {[%clk 0:01:01]}  Qg5+ {[%clk 0:00:34]} 32. Qg4 {[%clk 0:01:01]}  Qf6 {[%clk 0:00:33]} 33. Qf4 {[%clk 0:00:47]}  Be8 {[%clk 0:00:14]} 34. Qxf6 {[%clk 0:00:46]}  gxf6 {[%clk 0:00:14]} 35. Ne6 {[%clk 0:00:47]}  Kg6 {[%clk 0:00:12]} 36. Nxc7 {[%clk 0:00:46]}  Kf7 {[%clk 0:00:12]} 37. Nxe8 {[%clk 0:00:38]}  Kxe8 {[%clk 0:00:12]} 38. Kg4 {[%clk 0:00:37]}  Rf1 {[%clk 0:00:12]} 39. Kh5 {[%clk 0:00:35]}  f5 {[%clk 0:00:10]} 40. Kxh6 {[%clk 0:00:34]}  c5 {[%clk 0:00:10]} 41. Kg5 {[%clk 0:00:33]}  d4 {[%clk 0:00:10]} 42. cxd4 {[%clk 0:00:33]}  cxd4 {[%clk 0:00:11]} 43. Kf6 {[%clk 0:00:34]}  f4 {[%clk 0:00:08]} 44. Rd2 {[%clk 0:00:33]}  f3 {[%clk 0:00:09]} 45. g4 {[%clk 0:00:32]}  f2 {[%clk 0:00:07]} 46. Rxd4 {[%clk 0:00:32]}  Re1 {[%clk 0:00:07]} 47. Rd8# {[%clk 0:00:32]} 1-0


[Site "https://www.chess.com"]

[Event "Titled Tuesday Blitz November 29 Early 2022"]
[White "Sharifov, Mekhriddin"]
[Black "Bogaudinov, Rushan"]
[WhiteFideId "14701545"]
[BlackFideId "4129288"]
[WhiteElo "2109"]
[BlackElo "1997"]
[Result "1-0"]
[Round "06"]
[TimeControl "180+1"]
[Date "2022.11.30"]
[WhiteClock "0:01:52"]
[BlackClock "0:02:02"]

1. e4 {[%clk 0:03:00]}  c5 {[%clk 0:02:58]} 2. Nf3 {[%clk 0:02:59]}  d6 {[%clk 0:02:58]} 3. d4 {[%clk 0:03:00]}  cxd4 {[%clk 0:02:58]} 4. Nxd4 {[%clk 0:03:01]}  Nf6 {[%clk 0:02:58]} 5. Nc3 {[%clk 0:03:01]}  a6 {[%clk 0:02:57]} 6. Bg5 {[%clk 0:03:01]}  Qb6 {[%clk 0:02:55]} 7. Bxf6 {[%clk 0:03:00]}  gxf6 {[%clk 0:02:44]} 8. Nd5 {[%clk 0:02:53]}  Qd8 {[%clk 0:02:39]} 9. Qh5 {[%clk 0:02:33]}  Nc6 {[%clk 0:02:36]} 10. O-O-O {[%clk 0:02:28]}  Nxd4 {[%clk 0:02:25]} 11. Rxd4 {[%clk 0:02:29]}  Be6 {[%clk 0:02:23]} 12. Bc4 {[%clk 0:02:25]}  b5 {[%clk 0:02:20]} 13. Nxf6+ {[%clk 0:02:21]}  exf6 {[%clk 0:02:17]} 14. Bxe6 {[%clk 0:02:22]}  Qe7 {[%clk 0:02:14]} 15. Bd5 {[%clk 0:02:17]}  Rc8 {[%clk 0:02:13]} 16. Kb1 {[%clk 0:02:13]}  h6 {[%clk 0:02:05]} 17. Rhd1 {[%clk 0:02:09]}  Rg8 {[%clk 0:02:05]} 18. Bb3 {[%clk 0:01:56]}  Qe5 {[%clk 0:02:02]} 19. Qxf7+ {[%clk 0:01:52]} 1-0


[Site "https://www.chess.com"]

[Event "Titled Tuesday Blitz November 29 Early 2022"]
[White "Skliarov, Viktor"]
[Black "Kvaloy, Aksel Bu"]
[WhiteFideId "14106736"]
[BlackFideId "1528815"]
[WhiteElo "2284"]
[BlackElo "2184"]
[Result "1-0"]
[Round "06"]
[TimeControl "180+1"]
[Date "2022.11.30"]
[WhiteClock "0:00:03"]
[BlackClock "0:00:02"]

1. e4 {[%clk 0:03:00]}  e5 {[%clk 0:02:56]} 2. Nc3 {[%clk 0:03:00]}  Nf6 {[%clk 0:02:45]} 3. Bc4 {[%clk 0:02:59]}  Nxe4 {[%clk 0:02:43]} 4. Qh5 {[%clk 0:02:58]}  Nd6 {[%clk 0:02:41]} 5. Bb3 {[%clk 0:02:59]}  Be7 {[%clk 0:02:41]} 6. Qxe5 {[%clk 0:02:58]}  O-O {[%clk 0:02:40]} 7. d4 {[%clk 0:02:53]}  b5 {[%clk 0:02:39]} 8. Nge2 {[%clk 0:02:42]}  Nc6 {[%clk 0:02:35]} 9. Qf4 {[%clk 0:02:40]}  Na5 {[%clk 0:02:25]} 10. Nd5 {[%clk 0:02:33]}  Nxb3 {[%clk 0:02:22]} 11. axb3 {[%clk 0:02:32]}  Bb7 {[%clk 0:02:22]} 12. Nxe7+ {[%clk 0:02:29]}  Qxe7 {[%clk 0:02:22]} 13. Be3 {[%clk 0:02:29]}  Bxg2 {[%clk 0:02:15]} 14. Rg1 {[%clk 0:02:25]}  Be4 {[%clk 0:02:14]} 15. Nc3 {[%clk 0:01:45]}  b4 {[%clk 0:01:35]} 16. Nxe4 {[%clk 0:01:12]}  Qxe4 {[%clk 0:01:35]} 17. Qf6 {[%clk 0:01:06]}  Ne8 {[%clk 0:01:06]} 18. Qh6 {[%clk 0:00:43]}  Kh8 {[%clk 0:01:00]} 19. Qf4 {[%clk 0:00:20]}  Qxf4 {[%clk 0:01:00]} 20. Bxf4 {[%clk 0:00:21]}  d6 {[%clk 0:01:00]} 21. Ra4 {[%clk 0:00:20]}  a5 {[%clk 0:00:59]} 22. Kd2 {[%clk 0:00:16]}  Nf6 {[%clk 0:00:54]} 23. Rga1 {[%clk 0:00:16]}  Ne4+ {[%clk 0:00:54]} 24. Ke3 {[%clk 0:00:14]}  Rfe8 {[%clk 0:00:54]} 25. Kf3 {[%clk 0:00:15]}  g5 {[%clk 0:00:37]} 26. Be3 {[%clk 0:00:15]}  f5 {[%clk 0:00:33]} 27. Rxa5 {[%clk 0:00:15]}  Rxa5 {[%clk 0:00:33]} 28. Rxa5 {[%clk 0:00:16]}  f4 {[%clk 0:00:30]} 29. Bc1 {[%clk 0:00:15]}  h5 {[%clk 0:00:27]} 30. h4 {[%clk 0:00:15]}  g4+ {[%clk 0:00:27]} 31. Kxf4 {[%clk 0:00:16]}  c5 {[%clk 0:00:19]} 32. dxc5 {[%clk 0:00:14]}  dxc5 {[%clk 0:00:20]} 33. Ra7 {[%clk 0:00:13]}  Nxf2 {[%clk 0:00:19]} 34. Kg5 {[%clk 0:00:12]}  g3 {[%clk 0:00:18]} 35. Bf4 {[%clk 0:00:10]}  g2 {[%clk 0:00:17]} 36. Bh2 {[%clk 0:00:10]}  g1=Q+ {[%clk 0:00:13]} 37. Bxg1 {[%clk 0:00:10]}  Nh3+ {[%clk 0:00:14]} 38. Kxh5 {[%clk 0:00:10]}  Nxg1 {[%clk 0:00:14]} 39. Rc7 {[%clk 0:00:09]}  Re5+ {[%clk 0:00:15]} 40. Kg6 {[%clk 0:00:10]}  Re8 {[%clk 0:00:11]} 41. Rxc5 {[%clk 0:00:10]}  Nf3 {[%clk 0:00:12]} 42. h5 {[%clk 0:00:10]}  Nd4 {[%clk 0:00:11]} 43. Rc4 {[%clk 0:00:10]}  Rd8 {[%clk 0:00:07]} 44. Kf6 {[%clk 0:00:09]}  Kh7 {[%clk 0:00:07]} 45. Ke5 {[%clk 0:00:09]}  Nf3+ {[%clk 0:00:03]} 46. Kf4 {[%clk 0:00:10]}  Rf8+ {[%clk 0:00:03]} 47. Ke3 {[%clk 0:00:09]}  Ne1 {[%clk 0:00:02]} 48. Ke2 {[%clk 0:00:09]}  Ng2 {[%clk 0:00:02]} 49. Rxb4 {[%clk 0:00:09]}  Nf4+ {[%clk 0:00:02]} 50. Kd2 {[%clk 0:00:09]}  Nxh5 {[%clk 0:00:03]} 51. Rb6 {[%clk 0:00:09]}  Kg7 {[%clk 0:00:03]} 52. b4 {[%clk 0:00:09]}  Nf6 {[%clk 0:00:04]} 53. c4 {[%clk 0:00:09]}  Kf7 {[%clk 0:00:04]} 54. b5 {[%clk 0:00:08]}  Ke7 {[%clk 0:00:05]} 55. Kc3 {[%clk 0:00:08]}  Nd7 {[%clk 0:00:05]} 56. Rh6 {[%clk 0:00:08]}  Kd8 {[%clk 0:00:05]} 57. Kb4 {[%clk 0:00:08]}  Kc7 {[%clk 0:00:06]} 58. b3 {[%clk 0:00:07]}  Rf4 {[%clk 0:00:06]} 59. Kc3 {[%clk 0:00:06]}  Rf3+ {[%clk 0:00:06]} 60. Kb4 {[%clk 0:00:07]}  Rg3 {[%clk 0:00:06]} 61. Rc6+ {[%clk 0:00:07]}  Kb7 {[%clk 0:00:06]} 62. Rh6 {[%clk 0:00:08]}  Rf3 {[%clk 0:00:06]} 63. Rh7 {[%clk 0:00:06]}  Kc7 {[%clk 0:00:06]} 64. b6+ {[%clk 0:00:06]}  Kc6 {[%clk 0:00:05]} 65. Rh6+ {[%clk 0:00:07]}  Kb7 {[%clk 0:00:05]} 66. c5 {[%clk 0:00:07]}  Nb8 {[%clk 0:00:03]} 67. Kc4 {[%clk 0:00:06]}  Nc6 {[%clk 0:00:02]} 68. Rh7+ {[%clk 0:00:06]}  Ka6 {[%clk 0:00:03]} 69. b4 {[%clk 0:00:06]}  Rf4+ {[%clk 0:00:02]} 70. Kd5 {[%clk 0:00:06]}  Nxb4+ {[%clk 0:00:03]} 71. Kd6 {[%clk 0:00:06]}  Rd4+ {[%clk 0:00:03]} 72. Kc7 {[%clk 0:00:05]}  Nd5+ {[%clk 0:00:03]} 73. Kb8 {[%clk 0:00:05]}  Rc4 {[%clk 0:00:04]} 74. Ra7+ {[%clk 0:00:04]}  Kb5 {[%clk 0:00:03]} 75. b7 {[%clk 0:00:04]}  Rxc5 {[%clk 0:00:03]} 76. Ra1 {[%clk 0:00:04]}  Nb6 {[%clk 0:00:02]} 77. Rb1+ {[%clk 0:00:03]}  Ka6 {[%clk 0:00:02]} 78. Ra1+ {[%clk 0:00:03]} 1-0


[Site "https://www.chess.com"]

[Event "Titled Tuesday Blitz November 29 Early 2022"]
[White "Sovetbekova, Nurai"]
[Black "Rangel, Daniel"]
[WhiteFideId "13801910"]
[BlackFideId "2124475"]
[WhiteElo "1925"]
[BlackElo "2225"]
[Result "0-1"]
[Round "06"]
[TimeControl "180+1"]
[Date "2022.11.30"]
[WhiteClock "0:00:02"]
[BlackClock "0:00:10"]

1. d4 {[%clk 0:03:00]}  d5 {[%clk 0:02:59]} 2. c4 {[%clk 0:03:00]}  c6 {[%clk 0:02:59]} 3. g3 {[%clk 0:02:59]}  Nf6 {[%clk 0:03:00]} 4. Nf3 {[%clk 0:03:00]}  Bg4 {[%clk 0:02:58]} 5. Ne5 {[%clk 0:02:53]}  Be6 {[%clk 0:02:58]} 6. Qb3 {[%clk 0:02:39]}  Qb6 {[%clk 0:02:41]} 7. c5 {[%clk 0:02:36]}  Qc7 {[%clk 0:02:22]} 8. Nc3 {[%clk 0:02:26]}  Nbd7 {[%clk 0:02:15]} 9. Nf3 {[%clk 0:02:13]}  Ne4 {[%clk 0:02:00]} 10. Bf4 {[%clk 0:02:07]}  Qc8 {[%clk 0:02:00]} 11. a4 {[%clk 0:01:53]}  g6 {[%clk 0:01:56]} 12. Qc2 {[%clk 0:01:43]}  Ndf6 {[%clk 0:01:48]} 13. Be5 {[%clk 0:01:33]}  Bg7 {[%clk 0:01:47]} 14. Nxe4 {[%clk 0:01:26]}  dxe4 {[%clk 0:01:45]} 15. Ng5 {[%clk 0:01:20]}  Bd5 {[%clk 0:01:43]} 16. Bxf6 {[%clk 0:00:59]}  exf6 {[%clk 0:01:41]} 17. Nxe4 {[%clk 0:00:57]}  O-O {[%clk 0:01:35]} 18. Bg2 {[%clk 0:00:50]}  Qf5 {[%clk 0:01:25]} 19. O-O {[%clk 0:00:21]}  Rfe8 {[%clk 0:01:22]} 20. f3 {[%clk 0:00:22]}  Bh6 {[%clk 0:01:15]} 21. Qc3 {[%clk 0:00:19]}  Qe6 {[%clk 0:01:01]} 22. Nd6 {[%clk 0:00:16]}  Be3+ {[%clk 0:00:54]} 23. Kh1 {[%clk 0:00:16]}  Re7 {[%clk 0:00:50]} 24. f4 {[%clk 0:00:12]}  h5 {[%clk 0:00:41]} 25. Rad1 {[%clk 0:00:11]}  h4 {[%clk 0:00:37]} 26. Bxd5 {[%clk 0:00:05]}  Qxd5+ {[%clk 0:00:36]} 27. Rf3 {[%clk 0:00:05]}  hxg3 {[%clk 0:00:37]} 28. hxg3 {[%clk 0:00:05]}  Kg7 {[%clk 0:00:38]} 29. Kg2 {[%clk 0:00:04]}  Rh8 {[%clk 0:00:15]} 30. Qc4 {[%clk 0:00:02]}  Qh5 {[%clk 0:00:10]} 0-1


[Site "https://www.chess.com"]